fUSD/lending_fUSD_20240804
["ID","MTS","AMOUNT","RATE_DAILY","PERIOD"]
[334125978,1722789074464,-500.0,0.00023013,9]
[334125979,1722789074475,-500.0,0.00023013,9]
[334125980,1722789074485,-500.0,0.00023013,9]
[334125981,1722789074495,-500.0,0.00023013,9]
[334125982,1722789074505,-500.0,0.00023013,9]
[334125983,1722789074518,-500.0,0.00023013,9]
[334125984,1722789074527,-500.0,0.00023013,9]
[334125985,1722789074537,-500.0,0.00023013,9]
[334125986,1722789074547,-504.08717039,0.00023013,9]
[334125987,1722789074556,-500.0,0.00023013,9]
[334125988,1722789074566,-500.0,0.00023013,9]
[334125989,1722789074575,-500.0,0.00023013,9]
[334125990,1722789074585,-500.0,0.00023013,9]
[334125991,1722789074595,-500.0,0.00023013,9]
[334125992,1722789074605,-500.0,0.00023013,9]
[334125993,1722789074614,-500.0,0.00023013,9]
[334125994,1722789074624,-294.17263592,0.00023013,9]
[334125995,1722789074633,-500.0,0.00023013,9]
[334125996,1722789074643,-500.0,0.00023013,9]
[334125997,1722789074653,-500.0,0.00023013,9]
[334125998,1722789074663,-500.0,0.00023013,9]
[334125999,1722789074673,-500.0,0.00023013,9]
[334126000,1722789074683,-500.0,0.00023013,9]
[334126001,1722789074693,-500.0,0.00023013,9]
[334126002,1722789074702,-500.0,0.00023013,9]
[334126003,1722789074712,-500.0,0.00023013,9]
[334126004,1722789074722,-500.0,0.00023013,9]
[334126005,1722789074732,-528.21,0.00023013,9]
[334126006,1722789074741,-486.88,0.00023013,9]
[334126007,1722789074751,-500.0,0.00023013,9]
[334126008,1722789074760,-500.0,0.00023013,9]
[334126009,1722789074776,-500.0,0.00023013,9]
[334126010,1722789074785,-500.0,0.00023013,9]
[334126011,1722789074795,-500.0,0.00023013,9]
[334126012,1722789074805,-500.0,0.00023013,9]
[334126013,1722789074815,-500.0,0.00023013,9]
[334126014,1722789074825,-500.0,0.00023013,9]
[334126015,1722789074834,-500.0,0.00023013,9]
[334126016,1722789074844,-500.0,0.00023013,9]
[334126017,1722789074853,-500.0,0.00023013,9]
[334126018,1722789074863,-500.0,0.00023013,9]
[334126019,1722789074872,-500.0,0.00023013,9]
[334126020,1722789074882,-569.32,0.00023013,9]
[334126021,1722789074892,-500.0,0.00023013,9]
[334126022,1722789074901,-500.0,0.00023013,9]
[334126023,1722789074911,-501.80203623,0.00023013,9]
[334126024,1722789074919,-500.0,0.00023013,9]
[334126025,1722789074928,-500.0,0.00023013,9]
[334126026,1722789074938,-641.98,0.00023013,9]
[334126027,1722789074947,-523.37,0.00023013,9]
[334126028,1722789074957,-500.0,0.00023013,9]
[334126029,1722789074966,-500.0,0.00023013,9]
[334126030,1722789074976,-500.0,0.00023013,9]
[334126031,1722789074985,-500.0,0.00023013,9]
[334126032,1722789074994,-500.0,0.00023013,9]
[334126033,1722789075004,-500.0,0.00023013,9]
[334126034,1722789075013,-501.87506081,0.00023013,9]
[334126035,1722789075027,-500.0,0.00023013,9]
[334126036,1722789075036,-500.0,0.00023013,9]
[334126037,1722789075046,-500.0,0.00023013,9]
[334126038,1722789075055,-500.0,0.00023013,9]
[334126039,1722789075064,-500.0,0.00023013,9]
[334126040,1722789075074,-500.0,0.00023013,9]
[334126041,1722789075083,-500.0,0.00023013,9]
[334126042,1722789075092,-500.0,0.00023013,9]
[334126043,1722789075102,-1120.04,0.00023013,9]
[334126044,1722789075111,-1120.04,0.00023013,9]
[334126045,1722789075121,-1120.04,0.00023013,9]
[334126046,1722789075130,-500.0,0.00023013,9]
[334126047,1722789075141,-1120.04,0.00023013,9]
[334126048,1722789075155,-1120.04,0.00023013,9]
[334126049,1722789075164,-500.0,0.00023013,9]
[334126050,1722789075174,-510.65,0.00023013,9]
[334126051,1722789075184,-614.9219585,0.00023013,9]
[334126052,1722789075195,-500.0,0.00023013,9]
[334126053,1722789075205,-500.0,0.00023013,9]
[334126054,1722789075214,-500.0,0.00023013,9]
[334126055,1722789075224,-500.0,0.00023013,9]
[334126056,1722789075233,-500.0,0.00023013,9]
[334126057,1722789075244,-500.0,0.00023013,9]
[334126058,1722789075254,-500.0,0.00023013,9]
[334126059,1722789075263,-500.0,0.00023013,9]
[334126060,1722789075274,-501.45769202,0.00023013,9]
[334126061,1722789075284,-500.0,0.00023013,9]
[334126062,1722789075294,-6008.74,0.00023013,9]
[334126063,1722789075303,-631.0896295,0.00023013,9]
[334126064,1722789075313,-500.0,0.00023013,9]
[334126065,1722789075322,-500.0,0.00023013,9]
[334126066,1722789075331,-500.0,0.00023013,9]
[334126067,1722789075341,-500.0,0.00023013,9]
[334126068,1722789075351,-500.0,0.00023013,9]
[334126069,1722789075361,-500.0,0.00023013,9]
[334126070,1722789075371,-500.0,0.00023013,9]
[334126071,1722789075380,-500.0,0.00023013,9]
[334126072,1722789075390,-500.0,0.00023013,9]
[334126073,1722789075400,-500.0,0.00023013,9]
[334126074,1722789075409,-500.0,0.00023013,9]
[334126075,1722789075418,-2039.61,0.00023013,9]
[334126076,1722789075428,-500.0,0.00023013,9]
[334126077,1722789075439,-500.0,0.00023013,9]
[334126078,1722789075449,-500.0,0.00023013,9]
[334126079,1722789075458,-500.0,0.00023013,9]
[334126080,1722789075468,-3717.54,0.00023013,9]
[334126081,1722789075478,-500.0,0.00023013,9]
[334126082,1722789075488,-234.05839672,0.00023013,7]
[334126083,1722789075498,-500.0,0.00023013,9]
[334126084,1722789075507,-500.0,0.00023013,9]
[334126085,1722789075520,-631.25,0.00023013,9]
[334126086,1722789075532,-884.84,0.00023013,9]
[334126087,1722789075541,-500.0,0.00023013,9]
[334126088,1722789075552,-500.0,0.00023013,9]
[334126089,1722789075561,-500.0,0.00023013,9]
[334126090,1722789075571,-500.0,0.00023013,9]
[334126091,1722789075580,-151.0,0.00023013,7]
[334126092,1722789075590,-500.0,0.00023013,9]
[334126093,1722789075600,-500.0,0.00023013,9]
[334126094,1722789075610,-500.0,0.00023013,9]
[334126095,1722789075619,-151.0,0.00023013,7]
[334126096,1722789075628,-580.87,0.00023013,9]
[334126097,1722789075638,-3092.5,0.00023013,9]
[334126098,1722789075648,-500.0,0.00023013,9]
[334126099,1722789075658,-500.0,0.00023013,9]
[334126100,1722789075668,-500.0,0.00023013,9]
[334126101,1722789075677,-1380.41,0.00023013,9]
[334126102,1722789075687,-500.0,0.00023013,9]
[334126103,1722789075697,-1525.48,0.00023013,9]
[334126104,1722789075706,-523.63182769,0.00023013,9]
[334126105,1722789075715,-500.0,0.00023013,9]
[334126106,1722789075725,-500.0,0.00023013,9]
[334126107,1722789075735,-500.0,0.00023013,9]
[334126108,1722789075744,-500.0,0.00023013,9]
[334126109,1722789075753,-500.0,0.00023013,9]
[334126110,1722789075763,-500.0,0.00023013,9]
[334126111,1722789075779,-735.29,0.00023013,9]
[334126112,1722789075788,-151.0,0.00023013,7]
[334126113,1722789075797,-500.0,0.00023013,9]
[334126114,1722789075807,-500.0,0.00023013,9]
[334126115,1722789075816,-500.0,0.00023013,9]
[334126116,1722789075825,-500.0,0.00023013,9]
[334126117,1722789075834,-500.0,0.00023013,9]
[334126118,1722789075843,-1651.73,0.00023013,9]
[334126119,1722789075853,-500.0,0.00023013,9]
[334126120,1722789075862,-500.67242888,0.00023013,9]
[334126121,1722789075871,-1424.91,0.00023013,9]
[334126122,1722789075880,-500.0,0.00023013,9]
[334126123,1722789075890,-500.0,0.00023013,9]
[334126124,1722789075899,-500.0,0.00023013,9]
[334126125,1722789075910,-501.26059861,0.00023013,9]
[334126126,1722789075920,-511.18,0.00023013,9]
[334126127,1722789075929,-500.0,0.00023013,9]
[334126128,1722789075938,-500.0,0.00023013,9]
[334126129,1722789075948,-9291.65,0.00023013,9]
[334126130,1722789075958,-500.0,0.00023013,9]
[334126131,1722789075967,-500.0,0.00023013,9]
[334126132,1722789075977,-500.0,0.00023013,9]
[334126133,1722789075986,-500.0,0.00023013,9]
[334126134,1722789075996,-500.0,0.00023013,9]
[334126135,1722789076005,-500.0,0.00023013,9]
[334126136,1722789076015,-668.08,0.00023013,9]
[334126137,1722789076030,-1800.64,0.00023013,9]
[334126138,1722789076040,-500.0,0.00023013,9]
[334126139,1722789076049,-500.0,0.00023013,9]
[334126140,1722789076059,-1076.82,0.00023013,9]
[334126141,1722789076068,-243.9940792,0.00023013,9]
[334126142,1722789076078,-1604.95,0.00023013,9]
[334126143,1722789076087,-696.11,0.00023013,9]
[334126144,1722789076096,-840.83,0.00023013,9]
[334126145,1722789076106,-500.82171839,0.00023013,9]
[334126146,1722789076115,-734.28,0.00023013,9]
[334126147,1722789076124,-532.76,0.00023013,9]
[334126148,1722789076133,-500.0,0.00023013,9]
[334126149,1722789076142,-500.0,0.00023013,9]
[334126150,1722789076153,-500.0,0.00023013,9]
[334126151,1722789076163,-501.91066347,0.00023013,9]
[334126152,1722789076175,-500.0,0.00023013,9]
[334126153,1722789076184,-501.72704332,0.00023013,9]
[334126154,1722789076194,-500.0,0.00023013,9]
[334126155,1722789076203,-481.93,0.00023013,9]
[334126156,1722789076214,-500.0,0.00023013,9]
[334126157,1722789076224,-580.56,0.00023013,9]
[334126158,1722789076233,-1654.23,0.00023013,9]
[334126159,1722789076245,-500.0,0.00023013,9]
[334126160,1722789076254,-500.0,0.00023013,9]
[334126161,1722789076263,-500.0,0.00023013,9]
[334126162,1722789076281,-728.39,0.00023013,9]
[334126163,1722789076291,-932.72,0.00023013,9]
[334126164,1722789076300,-501.53473969,0.00023013,9]
[334126165,1722789076310,-500.0,0.00023013,9]
[334126166,1722789076319,-500.0,0.00023013,9]
[334126167,1722789076328,-716.95,0.00023013,9]
[334126168,1722789076337,-500.0,0.00023013,9]
[334126169,1722789076347,-500.0,0.00023013,9]
[334126170,1722789076356,-509.23,0.00023013,9]
[334126171,1722789076366,-652.16,0.00023013,9]
[334126172,1722789076376,-500.0,0.00023013,9]
[334126173,1722789076386,-500.0,0.00023013,9]
[334126174,1722789076396,-500.0,0.00023013,9]
[334126175,1722789076405,-1421.84,0.00023013,9]
[334126176,1722789076415,-500.0,0.00023013,9]
[334126177,1722789076425,-1831.37,0.00023013,9]
[334126178,1722789076434,-500.0,0.00023013,9]
[334126179,1722789076444,-9159.33,0.00023013,9]
[334126180,1722789076454,-500.0,0.00023013,9]
[334126181,1722789076464,-500.0,0.00023013,9]
[334126182,1722789076474,-500.0,0.00023013,9]
[334126183,1722789076482,-24340.79,0.00023013,9]
[334126184,1722789076492,-500.0,0.00023013,9]
[334126185,1722789076502,-500.0,0.00023013,9]
[334126186,1722789076511,-500.0,0.00023013,9]
[334126187,1722789076531,-500.0,0.00023013,9]
[334126188,1722789076541,-500.0,0.00023013,9]
[334126189,1722789076550,-500.0,0.00023013,9]
[334126190,1722789076559,-500.0,0.00023013,9]
[334126191,1722789076570,-500.0,0.00023013,9]
[334126192,1722789076580,-500.0,0.00023013,9]
[334126193,1722789076589,-500.0,0.00023013,9]
[334126194,1722789076599,-500.0,0.00023013,9]
[334126195,1722789076609,-500.0,0.00023013,9]
[334126196,1722789076619,-696.26,0.00023013,9]
[334126197,1722789076629,-500.0,0.00023013,9]
[334126198,1722789076638,-2392.07,0.00023013,9]
[334126199,1722789076648,-500.0,0.00023013,9]
[334126200,1722789076657,-400.0,0.00023013,9]
[334126201,1722789076667,-500.0,0.00023013,9]
[334126202,1722789076676,-6117.15,0.00023013,9]
[334126203,1722789076686,-500.0,0.00023013,9]
[334126204,1722789076696,-500.0,0.00023013,9]
[334126205,1722789076707,-500.0,0.00023013,9]
[334126206,1722789076716,-500.0,0.00023013,9]
[334126207,1722789076725,-500.0,0.00023013,9]
[334126208,1722789076734,-1134.1,0.00023013,9]
[334126209,1722789076743,-501.49845539,0.00023013,9]
[334126210,1722789076753,-871.99,0.00023013,9]
[334126211,1722789076766,-2627.33,0.00023013,9]
[334126212,1722789076780,-500.0,0.00023013,9]
[334126213,1722789076790,-771.73,0.00023013,9]
[334126214,1722789076799,-500.0,0.00023013,9]
[334126215,1722789076809,-544.49,0.00023013,9]
[334126216,1722789076819,-500.0,0.00023013,9]
[334126217,1722789076829,-500.0,0.00023013,9]
[334126218,1722789076838,-500.0,0.00023013,9]
[334126219,1722789076847,-6002.83,0.00023013,9]
[334126220,1722789076857,-500.0,0.00023013,9]
[334126221,1722789076867,-500.0,0.00023013,9]
[334126222,1722789076876,-500.0,0.00023013,9]
[334126223,1722789076886,-791.38,0.00023013,9]
[334126224,1722789076897,-11888.09,0.00023013,9]
[334126225,1722789076906,-500.0,0.00023013,9]
[334126226,1722789076915,-500.0,0.00023013,9]
[334126227,1722789076924,-500.0,0.00023013,9]
[334126228,1722789076933,-500.0,0.00023013,9]
[334126229,1722789076943,-500.0,0.00023013,9]
[334126230,1722789076953,-500.0,0.00023013,9]
[334126231,1722789076963,-944.27,0.00023013,9]
[334126232,1722789076972,-1585.57,0.00023013,9]
[334126233,1722789076981,-4038.41,0.00023013,9]
[334126234,1722789076992,-608.31,0.00023013,9]
[334126235,1722789077002,-500.0,0.00023013,9]
[334126236,1722789077012,-500.0,0.00023013,9]
[334126237,1722789077025,-500.0,0.00023013,9]
[334126238,1722789077034,-271.89,0.00023013,9]
[334126239,1722789077042,-1194.13,0.00023013,9]
[334126240,1722789077051,-500.0,0.00023013,9]
[334126241,1722789077061,-1646.59,0.00023013,9]
[334126242,1722789077071,-949.11,0.00023013,9]
[334126243,1722789077080,-500.0,0.00023013,9]
[334126244,1722789077089,-500.0,0.00023013,9]
[334126245,1722789077099,-500.0,0.00023013,9]
[334126246,1722789077108,-500.0,0.00023013,9]
[334126247,1722789077118,-500.0,0.00023013,9]
[334126248,1722789077127,-2124.99,0.00023013,9]
[334126249,1722789077136,-500.0,0.00023013,9]
[334126250,1722789077146,-500.0,0.00023013,9]
[334126251,1722789077161,-1277.47,0.00023013,9]
[334126252,1722789077173,-500.0,0.00023013,9]
[334126253,1722789077182,-500.0,0.00023013,9]
[334126254,1722789077191,-500.0,0.00023013,9]
[334126255,1722789077202,-500.0,0.00023013,9]
[334126256,1722789077211,-500.0,0.00023013,9]
[334126257,1722789077220,-500.0,0.00023013,9]
[334126258,1722789077230,-151.0,0.00023013,7]
[334126259,1722789077240,-2060.41,0.00023013,9]
[334126260,1722789077250,-5462.19,0.00023013,9]
[334126261,1722789077259,-150.0,0.00023013,9]
[334126262,1722789077273,-1732.64,0.00023013,9]
[334126263,1722789077283,-500.0,0.00023013,9]
[334126264,1722789077293,-500.0,0.00023013,9]
[334126265,1722789077302,-501.77629654,0.00023013,9]
[334126266,1722789077312,-500.0,0.00023013,9]
[334126267,1722789077322,-500.0,0.00023013,9]
[334126268,1722789077331,-500.0,0.00023013,9]
[334126269,1722789077340,-500.0,0.00023013,9]
[334126270,1722789077350,-1091.18,0.00023013,9]
[334126271,1722789077359,-500.0,0.00023013,9]
[334126272,1722789077369,-500.0,0.00023013,9]
[334126273,1722789077378,-544.49,0.00023013,9]
[334126274,1722789077388,-500.0,0.00023013,9]
[334126275,1722789077565,-501.556565,0.00023013,9]
[334126276,1722789077605,-564.87,0.00023013,9]
[334126277,1722789077615,-15172.23,0.00023013,9]
[334126278,1722789077624,-164.09,0.00023013,9]
[334126279,1722789077633,-221.543591,0.00023013,9]
[334126280,1722789077642,-4452.48,0.00023013,9]
[334126281,1722789077652,-500.0,0.00023013,9]
[334126282,1722789077661,-851.31,0.00023013,9]
[334126283,1722789077671,-500.0,0.00023013,9]
[334126284,1722789077680,-584.6,0.00023013,9]
[334126285,1722789077690,-1441.44,0.00023013,9]
[334126286,1722789077699,-2716.36,0.00023013,9]
[334126287,1722789077709,-500.0,0.00023013,9]
[334126288,1722789077719,-500.0,0.00023013,9]
[334126289,1722789077728,-1571.23,0.00023013,9]
[334126290,1722789077737,-574.32,0.00023013,9]
[334126291,1722789077747,-500.0,0.00023013,9]
[334126292,1722789077756,-500.0,0.00023013,9]
[334126293,1722789077770,-1778.849832,0.00023013,7]
[334126294,1722789077780,-500.0,0.00023013,9]
[334126295,1722789077790,-500.0,0.00023013,9]
[334126296,1722789077798,-1021.22,0.00023013,9]
[334126297,1722789077807,-703.47,0.00023013,9]
[334126298,1722789077817,-1778.849832,0.00023013,7]
[334126299,1722789077826,-501.14530401,0.00023013,9]
[334126300,1722789077835,-500.0,0.00023013,9]
[334126301,1722789077844,-1291.6,0.00023013,9]
[334126302,1722789077853,-1535.24,0.00023013,9]
[334126303,1722789077862,-763.08,0.00023013,9]
[334126304,1722789077871,-219.09280779,0.00023013,9]
[334126305,1722789077880,-5391.24,0.00023013,9]
[334126306,1722789077889,-1354.84,0.00023013,9]
[334126307,1722789077899,-584.33,0.00023013,9]
[334126308,1722789077908,-617.1401933,0.00023013,9]
[334126309,1722789077917,-500.0,0.00023013,9]
[334126310,1722789077927,-709.22,0.00023013,9]
[334126311,1722789077937,-500.0,0.00023013,9]
[334126312,1722789077947,-253.193013,0.00023013,7]
[334126313,1722789077956,-2713.37,0.00023013,9]
[334126314,1722789077966,-500.0,0.00023013,9]
[334126315,1722789077975,-2249.61,0.00023013,9]
[334126316,1722789077985,-995.02,0.00023013,9]
[334126317,1722789077994,-3893.64,0.00023013,9]
[334126318,1722789078004,-500.0,0.00023013,9]
[334126319,1722789078013,-500.0,0.00023013,9]
[334126320,1722789078025,-500.0,0.00023013,9]
[334126321,1722789078035,-500.0,0.00023013,9]
[334126322,1722789078045,-500.0,0.00023013,9]
[334126323,1722789078055,-605.15,0.00023013,9]
[334126324,1722789078064,-892.75,0.00023013,9]
[334126325,1722789078074,-511.49997001,0.00023013,9]
[334126326,1722789078084,-1131.9,0.00023013,9]
[334126327,1722789078094,-2837.07,0.00023013,9]
[334126328,1722789078103,-500.0,0.00023013,9]
[334126329,1722789078113,-500.0,0.00023013,9]
[334126330,1722789078122,-1059.61,0.00023013,9]
[334126331,1722789078132,-253.193013,0.00023013,7]
[334126332,1722789078142,-901.69,0.00023013,9]
[334126333,1722789078152,-500.0,0.00023013,9]
[334126334,1722789078164,-500.0,0.00023013,9]
[334126335,1722789078176,-500.0,0.00023013,9]
[334126336,1722789078185,-873.69,0.00023013,9]
[334126337,1722789078195,-500.0,0.00023013,9]
[334126338,1722789078207,-500.0,0.00023013,9]
[334126339,1722789078216,-497.53405895,0.00023013,9]
[334126340,1722789078227,-500.0,0.00023013,9]
[334126341,1722789078236,-1120.25,0.00023013,9]
[334126342,1722789078248,-500.0,0.00023013,9]
[334126343,1722789078259,-500.0,0.00023013,9]
[334126344,1722789078275,-500.0,0.00023013,9]
[334126345,1722789078285,-1475.32,0.00023013,9]
[334126346,1722789078296,-6849.94,0.00023013,9]
[334126347,1722789078307,-500.0,0.00023013,9]
[334126348,1722789078317,-2285.11,0.00023013,9]
[334126349,1722789078328,-1520.63,0.00023013,9]
[334126350,1722789078338,-645.98,0.00023013,9]
[334126351,1722789078348,-500.0,0.00023013,9]
[334126352,1722789078358,-151.0,0.00023013,7]
[334126353,1722789078369,-1055.9,0.00023013,9]
[334126354,1722789078379,-500.0,0.00023013,9]
[334126355,1722789078389,-501.0817441,0.00023013,9]
[334126356,1722789078399,-500.0,0.00023013,9]
[334126357,1722789078410,-500.0,0.00023013,9]
[334126358,1722789078420,-500.0,0.00023013,9]
[334126359,1722789078430,-500.0,0.00023013,9]
[334126360,1722789078440,-4923.42,0.00023013,9]
[334126361,1722789078450,-500.0,0.00023013,9]
[334126362,1722789078460,-151.0,0.00023013,7]
[334126363,1722789078470,-500.0,0.00023013,9]
[334126364,1722789078480,-1860.21,0.00023013,9]
[334126365,1722789078490,-1211.89,0.00023013,9]
[334126366,1722789078500,-500.0,0.00023013,9]
[334126367,1722789078510,-500.0,0.00023013,9]
[334126368,1722789078525,-501.4719001,0.00023013,9]
[334126369,1722789078536,-2498.66,0.00023013,9]
[334126370,1722789078546,-151.0,0.00023013,7]
[334126371,1722789078556,-500.0,0.00023013,9]
[334126372,1722789078566,-500.0,0.00023013,9]
[334126373,1722789078576,-500.0,0.00023013,9]
[334126374,1722789078587,-723.93,0.00023013,9]
[334126375,1722789078598,-2543.95,0.00023013,9]
[334126376,1722789078609,-500.0,0.00023013,9]
[334126377,1722789078619,-500.0,0.00023013,9]
[334126378,1722789078629,-781.57,0.00023013,9]
[334126379,1722789078641,-1321.62,0.00023013,9]
[334126380,1722789078651,-1395.06,0.00023013,9]
[334126381,1722789078661,-1624.5,0.00023013,9]
[334126382,1722789078671,-1415.76,0.00023013,9]
[334126383,1722789078681,-500.0,0.00023013,9]
[334126384,1722789078690,-500.0,0.00023013,9]
[334126385,1722789078701,-500.0,0.00023013,9]
[334126386,1722789078710,-1413.44,0.00023013,9]
[334126387,1722789078720,-500.0,0.00023013,9]
[334126388,1722789078730,-151.0,0.00023013,7]
[334126389,1722789078740,-500.0,0.00023013,9]
[334126390,1722789078750,-500.0,0.00023013,9]
[334126391,1722789078759,-1456.38,0.00023013,9]
[334126392,1722789078773,-1000.0,0.00023013,9]
[334126393,1722789078783,-1356.63,0.00023013,9]
[334126394,1722789078794,-500.0,0.00023013,9]
[334126395,1722789078803,-911.83,0.00023013,9]
[334126396,1722789078814,-500.0,0.00023013,9]
[334126397,1722789078824,-900.99,0.00023013,9]
[334126398,1722789078834,-500.0,0.00023013,9]
[334126399,1722789078843,-500.0,0.00023013,9]
[334126400,1722789078854,-1747.36,0.00023013,9]
[334126401,1722789078864,-500.0,0.00023013,9]
[334126402,1722789078874,-500.0,0.00023013,9]
[334126403,1722789078884,-2014.48,0.00023013,9]
[334126404,1722789078894,-2308.05,0.00023013,9]
[334126405,1722789078904,-500.0,0.00023013,9]
[334126406,1722789078914,-500.0,0.00023013,9]
[334126407,1722789078924,-500.0,0.00023013,9]
[334126408,1722789078934,-500.0,0.00023013,9]
[334126409,1722789078943,-2084.47,0.00023013,9]
[334126410,1722789078953,-500.78321244,0.00023013,9]
[334126411,1722789078962,-3204.33,0.00023013,9]
[334126412,1722789078972,-500.0,0.00023013,9]
[334126413,1722789078982,-500.0,0.00023013,9]
[334126414,1722789078992,-500.0,0.00023013,9]
[334126415,1722789079002,-1114.5,0.00023013,9]
[334126416,1722789079012,-500.0,0.00023013,9]
[334126417,1722789079027,-782.31,0.00023013,9]
[334126418,1722789079037,-500.0,0.00023013,9]
[334126419,1722789079047,-1467.0,0.00023013,9]
[334126420,1722789079057,-500.0,0.00023013,9]
[334126421,1722789079068,-1170.79,0.00023013,9]
[334126422,1722789079077,-151.0,0.00023013,7]
[334126423,1722789079087,-1027.92,0.00023013,9]
[334126424,1722789079097,-151.0,0.00023013,7]
[334126425,1722789079107,-500.0,0.00023013,9]
[334126426,1722789079117,-500.0,0.00023013,9]
[334126427,1722789079127,-584.12,0.00023013,9]
[334126428,1722789079136,-1503.19,0.00023013,9]
[334126429,1722789079146,-500.0,0.00023013,9]
[334126430,1722789079161,-500.0,0.00023013,9]
[334126431,1722789079170,-500.0,0.00023013,9]
[334126432,1722789079180,-2370.59,0.00023013,9]
[334126433,1722789079192,-575.96,0.00023013,9]
[334126434,1722789079204,-500.0,0.00023013,9]
[334126435,1722789079214,-500.0,0.00023013,9]
[334126436,1722789079225,-2115.13,0.00023013,9]
[334126437,1722789079237,-500.0,0.00023013,9]
[334126438,1722789079248,-8526.84,0.00023013,9]
[334126439,1722789079258,-151.0,0.00023013,7]
[334126440,1722789079269,-500.0,0.00023013,2]
[334126441,1722789079279,-500.0,0.00023013,9]
[334126442,1722789079289,-931.26,0.00023013,9]
[334126443,1722789079299,-584.7,0.00023013,9]
[334126444,1722789079309,-500.0,0.00023013,9]
[334126445,1722789079318,-183.68270485,0.00023013,9]
[334126446,1722789079329,-792.92,0.00023013,9]
[334126447,1722789079338,-500.0,0.00023013,9]
[334126448,1722789079348,-500.0,0.00023013,9]
[334126449,1722789079358,-500.0,0.00023013,9]
[334126450,1722789079368,-500.0,0.00023013,9]
[334126451,1722789079378,-500.0,0.00023013,9]
[334126452,1722789079387,-501.24770348,0.00023013,9]
[334126453,1722789079397,-500.0,0.00023013,9]
[334126454,1722789079407,-500.0,0.00023013,9]
[334126455,1722789079417,-500.0,0.00023013,9]
[334126456,1722789079426,-1212.39,0.00023013,9]
[334126457,1722789079436,-1614.2,0.00023013,9]
[334126458,1722789079445,-500.0,0.00023013,9]
[334126459,1722789079455,-2872.78,0.00023013,9]
[334126460,1722789079464,-500.0,0.00023013,9]
[334126461,1722789079473,-500.0,0.00023013,9]
[334126462,1722789079483,-720.05,0.00023013,9]
[334126463,1722789079493,-940.66,0.00023013,9]
[334126464,1722789079503,-500.0,0.00023013,9]
[334126465,1722789079513,-500.0,0.00023013,9]
[334126466,1722789079532,-2278.54,0.00023013,9]
[334126467,1722789079542,-1140.48,0.00023013,9]
[334126468,1722789079551,-500.0,0.00023013,9]
[334126469,1722789079561,-500.0,0.00023013,9]
[334126470,1722789079571,-500.0,0.00023013,9]
[334126471,1722789079580,-1064.77,0.00023013,9]
[334126472,1722789079591,-500.0,0.00023013,9]
[334126473,1722789079601,-500.0,0.00023013,9]
[334126474,1722789079611,-500.0,0.00023013,9]
[334126475,1722789079621,-500.0,0.00023013,9]
[334126476,1722789079631,-500.0,0.00023013,9]
[334126477,1722789079641,-500.0,0.00023013,9]